lending/lending_fUSD_20250121
["ID","MTS","AMOUNT","RATE_DAILY","PERIOD"]
[349894414,1737483038964,-500.0,0.00019451,2]
[349894415,1737483038976,-500.0,0.00019451,2]
[349894416,1737483038988,-500.0,0.00019451,2]
[349894417,1737483038999,-500.0,0.00019451,2]
[349894418,1737483039012,-500.0,0.00019451,2]
[349894419,1737483039024,-500.0,0.00019451,2]
[349894420,1737483039037,-500.0,0.00019451,2]
[349894421,1737483039053,-500.47216521,0.00019451,2]
[349894422,1737483039065,-500.0,0.00019451,2]
[349894423,1737483039080,-500.0,0.00019451,2]
[349894424,1737483039093,-500.0,0.00019451,2]
[349894425,1737483039105,-500.0,0.00019451,2]
[349894426,1737483039118,-500.0,0.00019451,2]
[349894427,1737483039130,-500.0,0.00019451,2]
[349894428,1737483039142,-500.0,0.00019451,2]
[349894429,1737483039154,-452.32791764,0.00019451,2]
[349894430,1737483039165,-500.0,0.00019451,2]
[349894431,1737483039177,-500.0,0.00019451,2]
[349894432,1737483039189,-500.0,0.00019451,2]
[349894433,1737483039201,-500.0,0.00019451,2]
[349894434,1737483039213,-500.0,0.00019451,2]
[349894435,1737483039224,-500.0,0.00019451,2]
[349894436,1737483039235,-500.0,0.00019451,2]
[349894437,1737483039246,-500.0,0.00019451,2]
[349894438,1737483039258,-500.0,0.00019451,2]
[349894439,1737483039269,-639.49088621,0.00019451,2]
[349894440,1737483039281,-500.0,0.00019451,2]
[349894441,1737483039291,-508.60085833,0.00019451,2]
[349894442,1737483039303,-258.44111925,0.00019451,2]
[349894443,1737483039314,-500.0,0.00019451,2]
[349894444,1737483039326,-500.0,0.00019451,2]
[349894445,1737483039338,-500.0,0.00019451,2]
[349894446,1737483039350,-501.63691262,0.00019451,2]
[349894447,1737483039362,-500.0,0.00019451,2]
[349894448,1737483039375,-500.0,0.00019451,2]
[349894449,1737483039386,-501.54069462,0.00019451,2]
[349894450,1737483039398,-500.0,0.00019451,2]
[349894451,1737483039409,-503.15670951,0.00019451,2]
[349894452,1737483039421,-500.0,0.00019451,2]
[349894453,1737483039432,-500.0,0.00019451,2]
[349894454,1737483039443,-500.0,0.00019451,2]
[349894455,1737483039454,-503.48194667,0.00019451,2]
[349894456,1737483039466,-500.0,0.00019451,2]
[349894457,1737483039477,-500.0,0.00019451,2]
[349894458,1737483039487,-503.65851433,0.00019451,2]
[349894459,1737483039499,-500.0,0.00019451,2]
[349894460,1737483039510,-500.0,0.00019451,2]
[349894461,1737483039522,-500.0,0.00019451,2]
[349894462,1737483039534,-500.0,0.00019451,2]
[349894464,1737483039547,-500.0,0.00019451,2]
[349894465,1737483039558,-174.12681345,0.00019451,2]
[349894466,1737483039570,-500.0,0.00019451,2]
[349894467,1737483039582,-500.0,0.00019451,2]
[349894468,1737483039593,-500.0,0.00019451,2]
[349894469,1737483039604,-500.0,0.00019451,2]
[349894470,1737483039616,-500.0,0.00019451,2]
[349894471,1737483039627,-500.0,0.00019451,2]
[349894472,1737483039638,-500.0,0.00019451,2]
[349894473,1737483039650,-500.0,0.00019451,2]
[349894474,1737483039661,-500.0,0.00019451,2]
[349894475,1737483039672,-500.0,0.00019451,2]
[349894476,1737483039683,-500.0,0.00019451,2]
[349894477,1737483039695,-500.0,0.00019451,2]
[349894478,1737483039706,-500.0,0.00019451,2]
[349894479,1737483039716,-500.0,0.00019451,2]
[349894480,1737483039728,-500.0,0.00019451,2]
[349894481,1737483039739,-500.0,0.00019451,2]
[349894482,1737483039750,-500.0,0.00019451,2]
[349894483,1737483039761,-503.9085247,0.00019451,2]
[349894484,1737483039772,-500.0,0.00019451,2]
[349894485,1737483039783,-500.0,0.00019451,2]
[349894486,1737483039795,-500.0,0.00019451,2]
[349894487,1737483039806,-500.0,0.00019451,2]
[349894488,1737483039816,-500.0,0.00019451,2]
[349894489,1737483039827,-500.0,0.00019451,2]
[349894490,1737483039836,-500.0,0.00019451,2]
[349894491,1737483039847,-500.0,0.00019451,2]
[349894492,1737483039856,-500.0,0.00019451,2]
[349894493,1737483039869,-500.0,0.00019451,2]
[349894494,1737483039879,-500.0,0.00019451,2]
[349894495,1737483039888,-642.9561592,0.00019451,2]
[349894496,1737483039898,-500.0,0.00019451,2]
[349894497,1737483039908,-500.0,0.00019451,2]
[349894498,1737483039917,-500.0,0.00019451,2]
[349894499,1737483039927,-623.67591033,0.00019451,2]
[349894500,1737483039937,-504.36999896,0.00019451,2]
[349894501,1737483039947,-500.0,0.00019451,2]
[349894502,1737483039956,-500.0,0.00019451,2]
[349894503,1737483039966,-500.0,0.00019451,2]
[349894504,1737483039976,-500.0,0.00019451,2]
[349894505,1737483039987,-507.36710628,0.00019451,2]
[349894511,1737483040302,-500.0,0.00019451,2]
[349894512,1737483040319,-500.0,0.00019451,2]
[349894513,1737483040329,-500.0,0.00019451,2]
[349894514,1737483040338,-500.0,0.00019451,2]
[349894515,1737483040348,-500.0,0.00019451,2]
[349894516,1737483040357,-500.0,0.00019451,2]
[349894517,1737483040367,-500.0,0.00019451,2]
[349894518,1737483040377,-500.0,0.00019451,2]
[349894519,1737483040386,-500.0,0.00019451,2]
[349894520,1737483040395,-500.0,0.00019451,2]
[349894521,1737483040405,-500.0,0.00019451,2]
[349894522,1737483040414,-500.0,0.00019451,2]
[349894523,1737483040423,-444.58084135,0.00019451,2]
[349894524,1737483040432,-500.0,0.00019451,2]
[349894525,1737483040443,-500.0,0.00019451,2]
[349894526,1737483040452,-504.72,0.00019451,2]
[349894527,1737483040462,-500.0,0.00019451,2]
[349894528,1737483040471,-500.0,0.00019451,2]
[349894529,1737483040480,-500.0,0.00019451,2]
[349894530,1737483040490,-500.0,0.00019451,2]
[349894531,1737483040500,-500.0,0.00019451,2]
[349894532,1737483040509,-500.0,0.00019451,2]
[349894533,1737483040518,-500.0,0.00019451,2]
[349894534,1737483040528,-500.0,0.00019451,2]
[349894535,1737483040537,-500.0,0.00019451,2]
[349894536,1737483040547,-500.0,0.00019451,2]
[349894537,1737483040557,-500.0,0.00019451,2]
[349894538,1737483040567,-500.0,0.00019451,2]
[349894539,1737483040577,-500.0,0.00019451,2]
[349894540,1737483040586,-500.0,0.00019451,2]
[349894541,1737483040596,-500.0,0.00019451,2]
[349894542,1737483040605,-562.5,0.00019451,2]
[349894543,1737483040615,-500.0,0.00019451,2]
[349894544,1737483040624,-500.0,0.00019451,2]
[349894545,1737483040634,-500.0,0.00019451,2]
[349894546,1737483040643,-500.0,0.00019451,2]
[349894547,1737483040652,-500.0,0.00019451,2]
[349894548,1737483040662,-505.95289121,0.00019451,2]
[349894549,1737483040671,-500.0,0.00019451,2]
[349894550,1737483040681,-500.0,0.00019451,2]
[349894551,1737483040690,-500.0,0.00019451,2]
[349894552,1737483040699,-500.0,0.00019451,2]
[349894553,1737483040709,-500.0,0.00019451,2]
[349894554,1737483040719,-500.0,0.00019451,2]
[349894555,1737483040728,-500.0,0.00019451,2]
[349894556,1737483040737,-500.0,0.00019451,2]
[349894557,1737483040746,-500.0,0.00019451,2]
[349894558,1737483040755,-500.0,0.00019451,2]
[349894559,1737483040765,-500.0,0.00019451,2]
[349894560,1737483040774,-500.0,0.00019451,2]
[349894561,1737483040784,-500.0,0.00019451,2]
[349894562,1737483040795,-500.0,0.00019451,2]
[349894563,1737483040804,-501.57969947,0.00019451,2]
[349894564,1737483040814,-510.13617525,0.00019451,2]
[349894565,1737483040823,-500.0,0.00019451,2]
[349894566,1737483040832,-500.0,0.00019451,2]
[349894567,1737483040843,-500.0,0.00019451,2]
[349894568,1737483040853,-546.07,0.00019451,2]
[349894569,1737483040866,-500.0,0.00019451,2]
[349894570,1737483040876,-671.73,0.00019451,2]
[349894571,1737483040885,-500.0,0.00019451,2]
[349894572,1737483040895,-500.0,0.00019451,2]
[349894573,1737483040904,-549.16457791,0.00019451,2]
[349894574,1737483040913,-500.0,0.00019451,2]
[349894575,1737483040923,-500.0,0.00019451,2]
[349894576,1737483040932,-1006.25,0.00019451,2]
[349894577,1737483040943,-500.0,0.00019451,2]
[349894578,1737483040953,-500.0,0.00019451,2]
[349894579,1737483040963,-618.05127319,0.00019451,2]
[349894580,1737483040972,-947.84,0.00019451,2]
[349894581,1737483040982,-751.6,0.00019451,2]
[349894582,1737483040992,-500.0,0.00019451,2]
[349894583,1737483041002,-500.0,0.00019451,2]
[349894584,1737483041012,-184.79115546,0.00019451,2]
[349894585,1737483041023,-500.0,0.00019451,2]
[349894586,1737483041031,-500.0,0.00019451,2]
[349894587,1737483041044,-500.0,0.00019451,2]
[349894588,1737483041054,-500.0,0.00019451,2]
[349894589,1737483041063,-772.41,0.00019451,2]
[349894590,1737483041072,-500.0,0.00019451,2]
[349894591,1737483041082,-505.28668545,0.00019451,2]
[349894592,1737483041093,-500.0,0.00019451,2]
[349894593,1737483041102,-500.0,0.00019451,2]
[349894594,1737483041111,-856.04,0.00019451,2]
[349894595,1737483041122,-706.52,0.00019451,2]
[349894596,1737483041130,-500.0,0.00019451,2]
[349894597,1737483041139,-500.0,0.00019451,2]
[349894598,1737483041150,-510.7087512,0.00019451,2]
[349894599,1737483041160,-500.0,0.00019451,2]
[349894600,1737483041169,-500.0,0.00019451,2]
[349894601,1737483041179,-500.0,0.00019451,2]
[349894602,1737483041191,-500.0,0.00019451,2]
[349894603,1737483041200,-500.0,0.00019451,2]
[349894604,1737483041210,-573.72,0.00019451,2]
[349894605,1737483041219,-1858.26,0.00019451,2]
[349894606,1737483041228,-3440.55,0.00019451,2]
[349894607,1737483041238,-545.79,0.00019451,2]
[349894608,1737483041248,-500.0,0.00019451,2]
[349894609,1737483041257,-529.8,0.00019451,2]
[349894610,1737483041266,-775.36,0.00019451,2]
[349894611,1737483041275,-793.73,0.00019451,2]
[349894612,1737483041285,-500.0,0.00019451,2]
[349894613,1737483041295,-668.75,0.00019451,2]
[349894614,1737483041304,-965.21,0.00019451,2]
[349894615,1737483041314,-500.0,0.00019451,2]
[349894616,1737483041323,-500.0,0.00019451,2]
[349894617,1737483041332,-695.23,0.00019451,2]
[349894618,1737483041341,-500.0,0.00019451,2]
[349894619,1737483041351,-500.0,0.00019451,2]
[349894620,1737483041360,-460.21654168,0.00019451,2]
[349894621,1737483041370,-594.25,0.00019451,2]
[349894622,1737483041380,-295.70367422,0.00019451,2]
[349894623,1737483041389,-500.0,0.00019451,2]
[349894624,1737483041398,-500.0,0.00019451,2]
[349894625,1737483041407,-537.5,0.00019451,2]
[349894626,1737483041416,-811.98,0.00019451,2]
[349894627,1737483041426,-1002.02,0.00019451,2]
[349894628,1737483041435,-500.0,0.00019451,2]
[349894629,1737483041445,-500.0,0.00019451,2]
[349894630,1737483041454,-500.0,0.00019451,2]
[349894631,1737483041464,-3103.79,0.00019451,2]
[349894632,1737483041474,-500.0,0.00019451,2]
[349894633,1737483041483,-620.07,0.00019451,2]
[349894634,1737483041492,-500.0,0.00019451,2]
[349894635,1737483041503,-500.0,0.00019451,2]
[349894636,1737483041513,-1537.27,0.00019451,2]
[349894637,1737483041523,-500.0,0.00019451,2]
[349894638,1737483041533,-500.0,0.00019451,2]
[349894639,1737483041543,-500.0,0.00019451,2]
[349894640,1737483041554,-500.0,0.00019451,2]
[349894641,1737483041586,-652.98,0.00019451,2]
[349894642,1737483041596,-520.77391348,0.00019451,2]
[349894643,1737483041605,-633.0,0.00019451,2]
[349894644,1737483041615,-750.85,0.00019451,2]
[349894645,1737483041626,-500.0,0.00019451,2]
[349894646,1737483041636,-902.08,0.00019451,2]
[349894647,1737483041646,-500.0,0.00019451,2]
[349894648,1737483041656,-1260.08,0.00019451,2]
[349894649,1737483041665,-682.01,0.00019451,2]
[349894650,1737483041675,-500.0,0.00019451,2]
[349894651,1737483041685,-500.0,0.00019451,2]
[349894652,1737483041695,-500.0,0.00019451,2]
[349894653,1737483041705,-500.0,0.00019451,2]
[349894654,1737483041715,-556.79,0.00019451,2]
[349894655,1737483041725,-1265.59,0.00019451,2]
[349894656,1737483041735,-500.0,0.00019451,2]
[349894657,1737483041745,-956.41,0.00019451,2]
[349894658,1737483041755,-500.0,0.00019451,2]
[349894659,1737483041765,-557.79,0.00019451,2]
[349894660,1737483041774,-500.0,0.00019451,2]
[349894661,1737483041784,-500.0,0.00019451,2]
[349894662,1737483041794,-586.91,0.00019451,2]
[349894663,1737483041803,-2879.02,0.00019451,2]
[349894664,1737483041813,-500.0,0.00019451,2]
[349894665,1737483041823,-500.0,0.00019451,2]
[349894666,1737483041833,-918.68,0.00019451,2]
[349894667,1737483041843,-500.0,0.00019451,2]
[349894668,1737483041852,-626.26787992,0.00019451,2]
[349894669,1737483041862,-500.0,0.00019451,2]
[349894670,1737483041876,-838.25,0.00019451,2]
[349894671,1737483041887,-626.19538978,0.00019451,2]
[349894672,1737483041898,-500.0,0.00019451,2]
[349894673,1737483041907,-505.81457257,0.00019451,2]
[349894674,1737483041917,-641.37,0.00019451,2]
[349894675,1737483041927,-856.36,0.00019451,2]
[349894676,1737483041937,-500.0,0.00019451,2]
[349894677,1737483041947,-500.0,0.00019451,2]
[349894678,1737483041956,-500.0,0.00019451,2]
[349894679,1737483041966,-500.0,0.00019451,2]
[349894680,1737483041976,-500.0,0.00019452,2]
[349894681,1737483041987,-500.0,0.00019452,2]
[349894682,1737483041996,-500.0,0.00019452,2]
[349894683,1737483042006,-500.0,0.00019452,2]
[349894684,1737483042016,-500.0,0.00019452,2]
[349894685,1737483042026,-500.0,0.00019452,2]
[349894686,1737483042036,-500.0,0.00019452,2]
[349894687,1737483042051,-1008.94,0.00019452,2]
[349894688,1737483042062,-500.0,0.00019452,2]
[349894689,1737483042072,-500.0,0.00019452,2]
[349894690,1737483042082,-500.0,0.00019452,2]
[349894691,1737483042092,-500.0,0.00019452,2]
[349894692,1737483042102,-500.0,0.00019452,2]
[349894693,1737483042112,-500.0,0.00019452,2]
[349894694,1737483042126,-500.0,0.00019452,2]
[349894695,1737483042137,-500.0,0.00019452,2]
[349894696,1737483042148,-500.0,0.00019452,2]
[349894697,1737483042158,-500.0,0.00019452,2]
[349894698,1737483042168,-500.0,0.00019452,2]
[349894699,1737483042178,-500.0,0.00019452,2]
[349894700,1737483042188,-500.0,0.00019452,2]
[349894701,1737483042198,-500.0,0.00019452,2]
[349894702,1737483042207,-500.0,0.00019452,2]
[349894703,1737483042217,-500.0,0.00019452,2]
[349894704,1737483042226,-500.0,0.00019452,2]
[349894705,1737483042236,-500.0,0.00019452,2]
[349894706,1737483042246,-500.0,0.00019452,2]
[349894707,1737483042255,-500.0,0.00019452,2]
[349894708,1737483042265,-500.0,0.00019452,2]
[349894709,1737483042274,-500.0,0.00019452,2]
[349894710,1737483042285,-333.11455638,0.00019452,2]
[349894711,1737483042295,-500.0,0.00019452,2]
[349894713,1737483042304,-500.0,0.00019452,2]
[349894714,1737483042314,-500.0,0.00019452,2]
[349894715,1737483042323,-549.91849383,0.00019452,2]
[349894716,1737483042333,-416.02129164,0.00019452,2]
[349894717,1737483042342,-500.0,0.00019452,2]
[349894718,1737483042351,-500.0,0.00019452,2]
[349894719,1737483042360,-500.0,0.00019452,2]
[349894720,1737483042371,-500.0,0.00019452,2]
[349894721,1737483042381,-500.0,0.00019452,2]
[349894722,1737483042390,-500.0,0.00019452,2]
[349894723,1737483042400,-500.0,0.00019452,2]
[349894724,1737483042409,-500.0,0.00019452,2]
[349894725,1737483042419,-500.0,0.00019452,2]
[349894726,1737483042430,-500.0,0.00019452,2]
[349894727,1737483042440,-500.0,0.00019452,2]
[349894728,1737483042449,-500.0,0.00019452,2]
[349894729,1737483042461,-500.0,0.00019452,2]
[349894730,1737483042470,-500.0,0.00019452,2]
[349894732,1737483042480,-500.0,0.00019452,2]
[349894733,1737483042490,-500.0,0.00019452,2]
[349894734,1737483042500,-500.0,0.00019452,2]
[349894735,1737483042510,-500.0,0.00019452,2]
[349894737,1737483042519,-500.0,0.00019452,2]
[349894739,1737483042529,-500.0,0.00019452,2]
[349894741,1737483042539,-500.0,0.00019452,2]
[349894742,1737483042550,-500.0,0.00019452,2]
[349894745,1737483042560,-500.0,0.00019452,2]
[349894747,1737483042570,-506.65,0.00019452,2]
[349894748,1737483042579,-1000.0,0.00019452,2]
[349894750,1737483042589,-881.25,0.00019452,2]
[349894751,1737483042599,-500.0,0.00019452,2]
[349894752,1737483042609,-269.55,0.00019452,2]
[349894754,1737483042621,-937.22,0.00019452,2]
[349894756,1737483042631,-500.0,0.00019452,2]
[349894757,1737483042641,-871.21,0.00019452,2]
[349894759,1737483042651,-500.0,0.00019452,2]
[349894761,1737483042662,-500.0,0.00019452,2]
[349894763,1737483042672,-781.13,0.00019452,2]
[349894764,1737483042683,-585.14314902,0.00019452,2]
[349894766,1737483042694,-500.0,0.00019452,2]
[349894768,1737483042704,-500.0,0.00019452,2]
[349894769,1737483042715,-150.0,0.00019495,2]
[349894770,1737483042725,-150.0,0.00019536,2]
[349894771,1737483042735,-383.84415347,0.0001958,2]
[349894772,1737483042745,-769.9943,0.00019626,2]
[349894773,1737483042756,-3906.0069,0.00019626,2]
[349894774,1737483042767,-150.0,0.00019648,2]
[349894775,1737483042777,-1950.82736059,0.0001968,2]
[349894776,1737483042787,-1000.0,0.00019688,2]
[349894777,1737483042798,-150.0,0.00019695,2]
[349894778,1737483042808,-150.0,0.00019696,2]
[349894779,1737483042819,-500.0,0.00019723,2]
[349894780,1737483042829,-643.35,0.00019724,2]
[349894781,1737483042840,-1429.17,0.00019724,2]
[349894782,1737483042853,-397.965417,0.00019724,2]
[349894783,1737483042863,-832.94,0.00019724,2]
[349894784,1737483042877,-500.0,0.00019724,2]
[349894785,1737483042887,-817.29,0.00019724,2]
[349894786,1737483042898,-1391.94,0.00019724,2]
[349894787,1737483042908,-500.0,0.00019724,2]
[349894788,1737483042919,-607.54,0.00019724,2]
[349894789,1737483042929,-1496.59,0.00019724,2]
[349894790,1737483042939,-517.97516,0.00019724,2]
[349894791,1737483042949,-500.0,0.00019724,2]
[349894792,1737483042960,-735.63,0.00019724,2]
[349894793,1737483042971,-258.15453366,0.00019724,2]
[349894794,1737483042982,-589.48,0.00019724,2]
[349894795,1737483042994,-807.53,0.00019724,2]
[349894797,1737483043004,-612.83,0.00019724,2]
[349894799,1737483043015,-1286.11,0.00019724,2]
[349894800,1737483043034,-1633.24,0.00019724,2]
[349894801,1737483043063,-817.72,0.00019724,2]
[349894802,1737483043075,-500.0,0.00019724,2]
[349894803,1737483043087,-1904.28,0.00019724,2]
[349894804,1737483043098,-500.0,0.00019724,2]
[349894805,1737483043108,-2362.47,0.00019724,2]
[349894806,1737483043121,-1323.28,0.00019724,2]
[349894807,1737483043132,-756.05,0.00019724,2]
[349894808,1737483043143,-2178.53,0.00019724,2]
[349894809,1737483043154,-1033.81,0.00019724,2]
[349894810,1737483043166,-1169.81,0.00019724,2]
[349894811,1737483043176,-753.19,0.00019724,2]
[349894812,1737483043186,-500.0,0.00019724,2]
[349894814,1737483043197,-1926.81,0.00019724,2]
[349894817,1737483043208,-830.69,0.00019724,2]
[349894819,1737483043218,-898.38,0.00019724,2]
[349894821,1737483043229,-837.96,0.00019724,2]
[349894822,1737483043239,-3361.17,0.00019724,2]
[349894823,1737483043250,-1737.93,0.00019724,2]
[349894824,1737483043259,-1522.51,0.00019724,2]
[349894825,1737483043270,-1030.59,0.00019724,2]
[349894826,1737483043280,-691.72,0.00019724,2]
[349894827,1737483043290,-1190.5,0.00019724,2]
[349894828,1737483043300,-500.0,0.00019724,2]
[349894829,1737483043310,-533.52,0.00019724,2]
[349894830,1737483043321,-500.0,0.00019724,2]
[349894831,1737483043331,-1134.08,0.00019724,2]
[349894832,1737483043342,-640.7,0.00019724,2]
[349894833,1737483043352,-1408.54,0.00019724,2]
[349894834,1737483043362,-731.78,0.00019724,2]
[349894835,1737483043375,-500.0,0.00019724,2]
[349894836,1737483043385,-1382.62,0.00019724,2]
[349894837,1737483043395,-1066.84,0.00019724,2]
[349894838,1737483043406,-550.98,0.00019724,2]
[349894839,1737483043416,-500.0,0.00019724,2]
[349894840,1737483043426,-1625.15,0.00019724,2]
[349894841,1737483043435,-1423.38,0.00019724,2]
[349894842,1737483043445,-500.0,0.00019725,2]
[349894843,1737483043455,-500.0,0.00019725,2]
[349894844,1737483043466,-516.77,0.00019725,2]
[349894845,1737483043476,-500.0,0.00019725,2]
[349894846,1737483043487,-500.0,0.00019725,2]
[349894847,1737483043498,-519.1,0.00019725,2]
[349894848,1737483043509,-500.0,0.00019725,2]
[349894849,1737483043520,-500.0,0.00019725,2]
[349894850,1737483043530,-512.0348896,0.00019725,2]
[349894851,1737483043539,-624.18,0.00019725,2]
[349894852,1737483043549,-500.0,0.00019725,2]
[349894853,1737483043559,-508.52,0.00019725,2]
[349894854,1737483043570,-500.0,0.00019725,2]
[349894855,1737483043580,-500.0,0.00019725,2]
[349894856,1737483043590,-500.0,0.00019725,2]
[349894857,1737483043601,-500.0,0.00019725,2]
[349894858,1737483043611,-500.0,0.00019725,2]
[349894859,1737483043624,-500.0,0.00019725,2]
[349894860,1737483043634,-500.0,0.00019725,2]
[349894861,1737483043644,-500.0,0.00019725,2]
[349894862,1737483043655,-500.0,0.00019725,2]
[349894863,1737483043665,-500.0,0.00019725,2]
[349894864,1737483043674,-500.0,0.00019725,2]
[349894865,1737483043843,-500.0,0.00019725,2]
[349894866,1737483043854,-500.0,0.00019725,2]
[349894867,1737483043864,-500.0,0.00019725,2]
[349894868,1737483043878,-500.0,0.00019725,2]
[349894869,1737483043887,-500.0,0.00019725,2]
[349894870,1737483043898,-204.82068201,0.00019725,2]
[349894871,1737483043908,-500.0,0.00019725,2]
[349894872,1737483043918,-500.0,0.00019725,2]
[349894873,1737483043928,-500.0,0.00019725,2]
[349894874,1737483043938,-500.0,0.00019725,2]
[349894875,1737483043947,-500.0,0.00019725,2]
[349894876,1737483043957,-500.0,0.00019725,2]
[349894877,1737483043966,-500.0,0.00019725,2]
[349894878,1737483043976,-500.0,0.00019725,2]
[349894879,1737483043986,-500.0,0.00019725,2]
[349894880,1737483043996,-500.0,0.00019725,2]
[349894881,1737483044007,-500.0,0.00019725,2]
[349894882,1737483044016,-500.0,0.00019725,2]
[349894883,1737483044026,-500.0,0.00019725,2]
[349894884,1737483044036,-500.0,0.00019725,2]
[349894885,1737483044051,-500.0,0.00019725,2]
[349894886,1737483044061,-500.0,0.00019725,2]
[349894887,1737483044071,-500.0,0.00019725,2]
[349894888,1737483044082,-500.0,0.00019725,2]
[349894889,1737483044094,-500.0,0.00019725,2]
[349894890,1737483044104,-500.0,0.00019725,2]
[349894891,1737483044114,-500.0,0.00019725,2]
[349894892,1737483044126,-500.0,0.00019725,2]
[349894893,1737483044137,-500.0,0.00019725,2]
[349894894,1737483044146,-500.0,0.00019725,2]
[349894895,1737483044156,-500.0,0.00019725,2]
[349894896,1737483044166,-500.0,0.00019725,2]
[349894897,1737483044176,-671.73,0.00019725,2]
[349894898,1737483044186,-500.0,0.00019725,2]
[349894899,1737483044196,-1006.25,0.00019725,2]
[349894900,1737483044206,-500.0,0.00019725,2]
[349894901,1737483044216,-947.84,0.00019725,2]
[349894902,1737483044226,-751.6,0.00019725,2]
[349894903,1737483044237,-500.0,0.00019725,2]
[349894904,1737483044247,-500.0,0.00019725,2]
[349894905,1737483044256,-500.0,0.00019725,2]
[349894906,1737483044267,-500.0,0.00019725,2]
[349894907,1737483044277,-772.41,0.00019725,2]
[349894908,1737483044287,-500.0,0.00019725,2]
[349894909,1737483044298,-500.0,0.00019725,2]
[349894910,1737483044308,-856.04,0.00019725,2]
[349894911,1737483044318,-706.52,0.00019725,2]
[349894912,1737483044327,-500.0,0.00019725,2]
[349894913,1737483044337,-500.0,0.00019725,2]
[349894914,1737483044347,-500.0,0.00019725,2]
[349894915,1737483044357,-573.72,0.00019725,2]
[349894916,1737483044367,-1858.26,0.00019725,2]
[349894917,1737483044377,-3440.55,0.00019725,2]
[349894918,1737483044387,-545.79,0.00019725,2]
[349894919,1737483044397,-529.8,0.00019725,2]
[349894920,1737483044407,-500.0,0.00019725,2]
[349894921,1737483044417,-775.36,0.00019725,2]
[349894922,1737483044427,-793.73,0.00019725,2]
[349894923,1737483044437,-668.75,0.00019725,2]
[349894924,1737483044446,-965.21,0.00019725,2]
[349894925,1737483044455,-500.0,0.00019725,2]
[349894926,1737483044465,-695.23,0.00019725,2]
[349894927,1737483044475,-594.25,0.00019725,2]
[349894928,1737483044484,-500.0,0.00019725,2]
[349894929,1737483044494,-537.5,0.00019725,2]
[349894930,1737483044504,-811.98,0.00019725,2]
[349894931,1737483044514,-1002.02,0.00019725,2]
[349894932,1737483044524,-500.0,0.00019725,2]
[349894933,1737483044534,-645.13,0.00019725,2]
[349894934,1737483044544,-3103.79,0.00019725,2]
[349894935,1737483044553,-620.07,0.00019725,2]
[349894936,1737483044563,-500.0,0.00019725,2]
[349894937,1737483044573,-500.0,0.00019725,2]
[349894938,1737483044584,-1537.27,0.00019725,2]
[349894939,1737483044594,-500.0,0.00019725,2]
[349894940,1737483044604,-500.0,0.00019725,2]
[349894941,1737483044614,-500.0,0.00019725,2]
[349894942,1737483044626,-652.98,0.00019725,2]